bitfinex/quotes_SOLUSD_20220228
["timestamp","ask_amount","ask_price","bid_price","bid_amount"]
[1646089403942,5.06506683,99.0,98.818,157.03]
[1646089404345,5.0,98.988,98.818,157.03]
[1646089404945,3.60024871,98.987,98.818,157.03]
[1646089405146,5.40071427,98.987,98.818,157.03]
[1646089405446,12.26556425,98.986,98.818,157.03]
[1646089405647,2.00150275,98.985,98.818,157.03]
[1646089406048,1.76496907,98.983,98.818,157.03]
[1646089406448,5.0,98.988,98.818,157.03]
[1646089406949,1.72172621,98.997,98.819,2.85790432]
[1646089407155,1.48474857,99.013,98.821,157.03]
[1646089407450,1.92971975,99.029,98.83,0.56]
[1646089407650,1.92971975,99.029,98.832,2.66856945]
[1646089407848,1.92971975,99.029,98.851,157.03]
[1646089408051,1.65810108,99.086,98.854,2.70916863]
[1646089408448,1.65810108,99.086,98.856,157.03]
[1646089408649,1.65810108,99.086,98.857,2.30823596]
[1646089408849,1.65810108,99.086,98.859,2.51446422]
[1646089409451,1.65810108,99.086,98.861,157.03]
[1646089409654,1.65810108,99.086,98.862,2.1557197]
[1646089409850,73.0934,99.087,98.863,157.03]
[1646089409851,1.92891937,99.084,98.863,157.03]
[1646089410051,1.92891937,99.084,98.864,2.86217358]
[1646089410251,1.92891937,99.084,98.863,159.77678921]
[1646089410252,112.7,99.065,98.863,159.77678921]
[1646089410453,5.0,99.058,98.863,159.77678921]
[1646089410655,99.49792993,99.064,98.863,159.77678921]
[1646089410854,12.26556425,99.057,98.863,159.77678921]
[1646089411154,12.26556425,99.057,98.86,23.2999]
[1646089411155,5.0,99.038,98.864,59.33]
[1646089411454,1.67018328,99.036,98.864,59.33]
[1646089411852,12.26556425,99.035,98.864,59.33]
[1646089412155,1.88907327,99.034,98.861,59.33]
[1646089412452,5.0,99.028,98.861,59.33]
[1646089412752,101.30024871,99.027,98.861,59.33]
[1646089412953,101.30024871,99.027,98.86,23.2999]
[1646089412954,5.0,99.008,98.86,23.2999]
[1646089413451,3.60024871,99.007,98.86,23.2999]
[1646089413653,101.30024871,99.007,98.719,349.20421481]
[1646089413852,5.0,98.918,98.721,61.71996091]
[1646089414153,59.33,98.946,98.722,97.7]
[1646089414352,12.56511434,98.917,98.74,97.7]
[1646089414553,1.95403248,98.916,98.76,97.7]
[1646089414754,1.95403248,98.916,98.767,157.03]
[1646089414952,12.10523092,98.915,98.767,59.33]
[1646089415154,1.69751897,98.914,98.767,59.33]
[1646089415355,1.69751897,98.914,98.769,59.33]
[1646089415654,1.92613743,98.912,98.769,59.33]
[1646089416055,2.03503395,98.93,98.769,59.33]
[1646089416254,1.59314374,98.91,98.774,97.7]
[1646089416557,1.59314374,98.91,98.777,59.33]
[1646089416753,1.76369097,98.928,98.777,59.33]
[1646089417156,15.68436306,98.927,98.777,59.33]
[1646089417356,1.91696208,98.926,98.784,97.7]
[1646089417555,1.91696208,98.926,98.792,97.7]
[1646089417753,1.91696208,98.926,98.791,59.33]
[1646089417754,1.91696208,98.926,98.808,97.7]
[1646089417953,12.56511434,98.941,98.809,59.33]
[1646089418154,1.7972546,98.94,98.809,59.33]
[1646089418354,1.7972546,98.94,98.817,59.33]
[1646089418557,1.49022737,98.954,98.838,97.7]
[1646089418754,1.49022737,98.954,98.855,59.33]
[1646089418953,1.49022737,98.954,98.854,97.7]
[1646089418954,1.62798437,98.969,98.869,59.33]
[1646089419354,12.56511434,98.992,98.869,59.33]
[1646089419557,1.54262181,98.991,98.775,59.33]
[1646089419755,1.54262181,98.991,98.776,2.64532024]
[1646089419957,15.68436306,98.99,98.776,2.64532024]
[1646089420156,15.68436306,98.99,98.776,103.09210945]
[1646089420458,1.51596844,98.989,98.804,97.7]
[1646089420655,1.51596844,98.989,98.816,97.7]
[1646089420857,12.10523092,98.988,98.841,59.33]
[1646089421055,2.03321744,98.987,98.849,59.33]
[1646089421458,2.02853517,98.985,98.851,59.33]
[1646089421857,1.74116195,98.983,98.851,59.33]
[1646089422056,1.74116195,98.983,98.834,2.82017964]
[1646089422256,1.74116195,98.983,98.829,59.33]
[1646089422559,1.85324854,98.981,98.864,97.7]
[1646089422755,1.85324854,98.981,98.879,59.33]
[1646089422957,2.00762611,98.991,98.879,59.33]
[1646089423156,2.00762611,98.991,98.881,59.33]
[1646089423361,15.68436306,98.99,98.881,59.33]
[1646089423557,1.78612524,98.989,98.881,59.33]
[1646089423760,1.78612524,98.989,98.836,2.36849963]
[1646089423957,17.10523092,98.988,98.825,59.33]
[1646089424156,1.40435519,98.98,98.825,59.33]
[1646089424356,1.40435519,98.978,98.825,59.33]
[1646089424761,2.88416382,98.978,98.825,59.33]
[1646089424960,1.47980863,98.978,98.839,59.33]
[1646089425162,1.40435519,98.983,98.849,59.33]
[1646089425359,1.40435519,98.98,98.849,59.33]
[1646089425560,1.40435519,98.981,98.849,59.33]
[1646089425960,1.40435519,98.981,98.819,22.8448]
[1646089425961,1.40435519,98.979,98.82,59.33]
[1646089426363,1.40435519,98.979,98.822,59.33]
[1646089426566,1.40435519,98.982,98.823,2.81187553]
[1646089426764,1.40435519,98.98,98.824,59.33]
[1646089426964,1.40435519,98.98,98.835,97.7]
[1646089427164,1.40435519,98.984,98.85,59.33]
[1646089427367,1.40435519,98.999,98.862,59.33]
[1646089427670,1.40435519,98.973,98.818,10.36533086]
[1646089427868,1.40435519,98.947,98.755,2.47619394]
[1646089428065,1.40435519,98.947,98.756,2.50026578]
[1646089428265,1.40435519,98.941,98.756,2.50026578]
[1646089428470,1.40435519,98.943,98.762,59.33]
[1646089428665,1.40435519,98.943,98.774,157.03]
[1646089428866,1.40435519,98.937,98.775,2.22861337]
[1646089429067,1.40435519,98.933,98.775,2.22861337]
[1646089429266,1.40435519,98.932,98.775,2.22861337]
[1646089429466,2.74678921,98.932,98.775,2.22861337]
[1646089429866,1.40435519,98.935,98.775,2.22861337]
[1646089430068,1.40435519,98.931,98.775,2.22861337]
[1646089430269,2.96174964,98.931,98.775,2.22861337]
[1646089430469,30.8700134,98.93,98.775,2.22861337]
[1646089430670,33.61680261,98.93,98.775,2.22861337]
[1646089430868,1.40435519,98.921,98.773,24.3491]
[1646089431067,1.40435519,98.922,98.773,24.3491]
[1646089431269,1.40435519,98.9,98.773,24.3491]
[1646089431473,1.40435519,98.898,98.773,24.3491]
[1646089431669,1.40435519,98.889,98.754,47.3404]
[1646089431868,1.40435519,98.879,98.754,47.3404]
[1646089432069,1.40435519,98.871,98.754,47.3404]
[1646089432272,1.40435519,98.871,98.754,24.1912]
[1646089432469,1.40435519,98.876,98.754,24.1912]
[1646089432669,30.8700134,98.87,98.754,24.1912]
[1646089432871,1.93921949,98.869,98.754,24.1912]
[1646089433292,2.74678921,98.868,98.754,24.1912]
[1646089433470,4.56479807,98.868,98.754,24.1912]
[1646089433973,1.40435519,98.879,98.754,24.1912]
[1646089434171,2.74678921,98.867,98.754,24.1912]
[1646089434372,2.74678921,98.867,98.759,157.03]
[1646089434775,1.40435519,98.902,98.759,157.03]
[1646089434975,2.74678921,98.889,98.759,59.33]
[1646089435174,2.74678921,98.889,98.769,59.33]
[1646089436379,2.74678921,98.889,98.754,24.1912]
[1646089436380,2.74678921,98.889,98.77,59.33]
[1646089437379,2.74678921,98.889,98.771,59.33]
[1646089438279,2.74678921,98.889,98.767,97.7]
[1646089438481,2.74678921,98.889,98.77,59.33]
[1646089438679,2.74678921,98.889,98.776,59.33]
[1646089439080,2.74678921,98.889,98.779,59.33]
[1646089439479,2.74678921,98.889,98.755,59.33]
[1646089439882,2.74678921,98.889,98.754,24.1912]
[1646089440482,1.40435519,98.881,98.754,24.1912]
[1646089440683,1.40435519,98.877,98.754,24.1912]
[1646089440898,1.40435519,98.876,98.754,24.1912]
[1646089441198,2.74678921,98.876,98.754,24.1912]
[1646089441397,1.40435519,98.878,98.754,24.1912]
[1646089441598,2.74678921,98.877,98.754,24.1912]
[1646089441797,4.1511444,98.877,98.754,24.1912]
[1646089442097,1.40435519,98.877,98.754,24.1912]
[1646089442299,1.40435519,98.878,98.754,24.1912]
[1646089442598,2.74678921,98.876,98.754,24.1912]
[1646089443000,2.74678921,98.876,98.755,59.33]
[1646089443203,1.40435519,98.893,98.757,59.33]
[1646089443398,1.40435519,98.893,98.759,61.5074277]
[1646089443599,1.40435519,98.912,98.761,59.33]
[1646089443900,1.40435519,98.935,98.774,97.7]
[1646089444099,2.74678921,98.929,98.784,97.7]
[1646089444298,1.40435519,98.935,98.799,59.33]
[1646089444499,1.40435519,98.94,98.818,97.7]
[1646089444698,2.74678921,98.941,98.838,97.7]
[1646089444898,2.74678921,98.941,98.84,97.7]
[1646089445098,4.1511444,98.941,98.849,59.33]
[1646089445299,1.40435519,98.948,98.819,59.33]
[1646089445499,1.40435519,98.948,98.82,2.56854639]
[1646089445698,1.40435519,98.958,98.85,2.74678921]
[1646089445901,1.40435519,98.97,98.85,2.74678921]
[1646089446099,1.40435519,98.971,98.85,2.74678921]
[1646089446500,4.18737783,99.027,98.85,2.74678921]
[1646089446501,4.53451582,99.034,98.85,2.74678921]
[1646089446700,4.53451582,99.034,98.861,97.7]
[1646089446900,2.03964004,99.034,98.884,59.33]
[1646089447103,1.6801762,99.051,98.894,59.33]
[1646089447303,1.87108962,99.05,98.9,157.03]
[1646089447502,1.79581491,99.049,98.901,2.27408759]
[1646089447702,1.79460174,99.048,98.9,59.33]
[1646089447903,1.46921488,99.047,98.9,59.33]
[1646089448201,24.36784594,99.074,98.9,59.33]
[1646089448202,2.74678921,99.042,98.9,59.33]
[1646089448407,1.90172455,99.041,98.901,2.74678921]
[1646089448607,1.90172455,99.041,98.894,59.33]
[1646089448805,2.74678921,99.034,98.895,97.7]
[1646089449006,4.76017703,99.034,98.907,97.7]
[1646089449211,2.74678921,99.034,98.914,59.33]
[1646089449407,1.70888208,99.034,98.914,59.33]
[1646089449609,2.74678921,99.048,98.915,2.94946427]
[1646089449810,2.74678921,99.048,98.917,2.77509371]
[1646089450111,6.90889381,99.124,98.92,0.56]
[1646089450112,1.69062124,99.114,98.92,0.56]
[1646089450315,2.68822815,99.133,98.95,0.56]
[1646089450516,1.68183357,99.167,98.953,59.33]
[1646089450812,2.74678921,99.162,98.978,97.7]
[1646089451011,2.74678921,99.162,98.991,59.33]
[1646089451226,2.74678921,99.162,99.01,97.7]
[1646089451411,0.50664136,99.17,99.03,97.7]
[1646089451611,0.50664136,99.17,99.049,59.33]
[1646089451912,0.50664136,99.17,99.073,59.33]
[1646089452211,0.50664136,99.17,99.024,13.98081712]
[1646089452212,1.72199874,99.227,99.083,59.33]
[1646089452411,4.18737783,99.252,99.1,0.56]
[1646089452612,1.63645578,99.293,99.106,97.7]
[1646089452913,2.68822815,99.315,99.11,97.7]
[1646089453112,2.68822815,99.332,99.111,71.20038953]
[1646089453317,2.68822815,99.332,99.112,2.32988361]
[1646089453518,2.56689491,99.331,99.112,174.29230073]
[1646089453716,5.0,99.328,99.113,17.6837734]
[1646089453911,1.94773907,99.334,99.114,97.7]
[1646089453912,2.68822815,99.327,99.114,97.7]
[1646089454114,2.68822815,99.331,99.115,2.3391831]
[1646089454314,2.56689491,99.326,99.13,97.7]
[1646089454514,2.56689491,99.326,99.154,97.7]
[1646089454719,2.74678921,99.363,99.132,2.60280281]
[1646089455016,5.0,99.338,99.132,2.60280281]
[1646089455218,5.0,99.308,99.131,78.631]
[1646089455418,5.0,99.308,99.111,23.4527]
[1646089455618,5.0,99.268,99.111,23.4527]
[1646089456021,5.0,99.248,99.041,76.7572]
[1646089456220,5.0,99.188,99.04,72.2113]
[1646089456418,5.0,99.208,99.04,72.2113]
[1646089456618,5.0,99.198,99.04,72.2113]
[1646089456818,5.0,99.198,99.0,7.3]
[1646089457019,5.0,99.188,99.0,7.3]
[1646089457421,2.74678921,99.187,99.0,7.3]
[1646089458223,2.74678921,99.187,99.001,2.74678921]
[1646089458524,2.74678921,99.187,99.002,28.58439386]
[1646089458722,2.74678921,99.187,99.003,59.33]
[1646089458922,2.74678921,99.187,99.004,61.99240948]
[1646089459124,2.74678921,99.187,99.005,2.4147104]
[1646089459548,2.74678921,99.187,99.0,6.8]
[1646089460126,5.0,99.178,99.0,6.8]
[1646089460329,5.0,99.148,99.0,6.8]
[1646089460626,5.0,99.138,99.0,6.8]
[1646089461429,5.0,99.128,99.0,6.8]
[1646089461632,5.0,99.088,99.0,6.8]
[1646089461829,5.0,99.078,98.894,22.7736]
[1646089462030,5.0,99.078,98.851,74.8271]
[1646089462232,5.0,99.078,98.859,2.74678921]
[1646089462431,5.0,99.078,98.865,97.7]
[1646089462631,2.74678921,99.077,98.874,59.33]
[1646089462832,2.74678921,99.077,98.891,97.7]
[1646089463033,2.74678921,99.077,98.897,97.7]
[1646089463234,22.07725871,99.116,98.88,0.56]
[1646089463235,5.0,99.128,98.902,59.33]
[1646089463433,1.95535858,99.157,98.915,97.7]
[1646089463637,2.74678921,99.098,98.932,59.33]
[1646089463833,1.49642707,99.162,98.949,97.7]
[1646089464033,2.74678921,99.157,98.964,59.33]
[1646089464333,2.74678921,99.157,98.991,97.7]
[1646089464532,5.0,99.228,99.003,97.7]
[1646089464731,5.0,99.228,99.002,59.33]
[1646089464732,2.74678921,99.198,99.022,59.33]
[1646089464931,2.74678921,99.198,99.023,76.3127]
[1646089465532,22.07725871,99.197,99.023,76.3127]
[1646089465734,5.0,99.178,98.969,24.245]
[1646089465933,5.0,99.148,98.969,24.245]
[1646089466335,22.07725871,99.156,98.969,24.245]
[1646089466532,3.15560722,99.147,98.969,24.245]
[1646089466733,2.74678921,99.147,98.97,2.70630336]
[1646089466933,6.81694973,99.168,98.969,83.575]
[1646089467433,2.74678921,99.154,98.969,24.245]
[1646089468132,5.0,99.148,98.969,24.245]
[1646089468736,2.74678921,99.147,98.969,24.245]
[1646089469337,2.74678921,99.147,98.97,2.74678921]
[1646089469737,2.74678921,99.147,98.969,24.245]
[1646089469938,2.74678921,99.147,98.975,59.33]
[1646089470141,2.74678921,99.147,98.981,59.33]
[1646089470438,2.74678921,99.147,98.981,62.25164557]
[1646089471038,2.74678921,99.147,98.985,59.33]
[1646089471446,2.74678921,99.147,98.969,24.245]
[1646089472241,22.07725871,99.146,98.969,24.245]
[1646089472441,1.72359278,99.145,98.969,24.245]
[1646089473044,2.74678921,99.144,98.969,24.245]
[1646089473844,2.74678921,99.144,98.966,24.2718]
[1646089474054,5.0,99.118,98.966,24.2718]
[1646089474246,5.0,99.098,98.966,24.2718]
[1646089474660,5.0,99.088,98.966,24.2718]
[1646089474859,5.0,99.088,98.886,23.3672]
[1646089474860,5.0,99.088,98.917,24.7578]
[1646089475261,1.95877069,99.086,98.917,24.7578]
[1646089475861,2.74678921,99.085,98.917,24.7578]
[1646089480164,2.74678921,99.085,98.918,59.33]
[1646089480362,2.74678921,99.085,98.933,97.7]
[1646089480564,1.82508653,99.117,98.949,97.7]
[1646089480766,2.74678921,99.109,98.954,59.33]
[1646089480962,2.74678921,99.109,98.959,59.33]
[1646089481163,2.74678921,99.109,98.96,2.37348675]
[1646089481364,1.53980794,99.148,98.967,59.33]
[1646089481566,2.74678921,99.147,98.969,59.33]
[1646089481765,2.74678921,99.147,98.97,81.28591354]
[1646089481964,5.0,99.138,98.97,78.6033]
[1646089482169,5.0,99.128,98.97,78.6033]
[1646089482367,5.0,99.128,98.968,68.7422]
[1646089482563,2.74678921,99.127,98.968,68.7422]
[1646089482763,37.237826,99.127,98.968,68.7422]
[1646089483063,14.13530987,99.126,98.968,68.7422]
[1646089483264,1.98186802,99.125,98.968,68.7422]
[1646089483465,14.3956461,99.125,98.968,68.7422]
[1646089483865,4.39499975,99.124,98.968,68.7422]
[1646089484373,1.64821054,99.124,98.968,68.7422]
[1646089484566,2.74678921,99.123,98.968,68.7422]
[1646089484765,2.74678921,99.123,98.969,59.33]
[1646089486066,2.74678921,99.123,98.97,97.7]
[1646089486365,12.41377808,99.122,98.969,59.33]
[1646089486569,1.5935222,99.121,98.969,59.33]
[1646089486770,1.5935222,99.121,98.97,97.7]
[1646089486969,2.74678921,99.12,98.969,59.33]
[1646089487367,2.74678921,99.12,98.978,97.7]
[1646089487567,2.74678921,99.12,98.981,157.03]
[1646089488169,2.74678921,99.12,98.969,59.33]
[1646089488468,2.74678921,99.12,98.981,157.03]
[1646089488868,2.74678921,99.12,98.981,59.33]
[1646089489472,2.74678921,99.12,98.972,59.33]
[1646089489670,2.74678921,99.12,98.982,59.33]
[1646089490773,2.74678921,99.12,98.969,59.33]
[1646089490973,2.74678921,99.12,98.968,68.7422]
[1646089491172,5.0,99.118,98.968,68.7422]
[1646089491373,6.78491007,99.118,98.968,68.7422]
[1646089491578,3.96993,99.116,98.84,5.56]
[1646089491775,5.0,99.088,98.91,15.42]
[1646089491979,3.96993,99.086,98.886,15.4194]
[1646089492174,5.0,99.048,98.886,15.4194]
[1646089492374,5.0,99.038,98.886,15.4194]
[1646089492576,5.0,99.018,98.886,15.4194]
[1646089492773,5.0,99.008,98.886,15.4194]
[1646089492974,2.01044445,99.036,98.886,15.4194]
[1646089493173,2.74678921,99.023,98.85,71.0545]
[1646089493373,2.74678921,99.023,98.851,2.380338]
[1646089493572,2.74678921,99.023,98.851,102.82712721]
[1646089493772,2.74678921,99.023,98.854,59.33]
[1646089493973,2.74678921,99.023,98.86,2.51072986]
[1646089494674,2.74678921,99.023,98.86,97.7]
[1646089494872,2.74678921,99.023,98.87,97.7]
[1646089495073,2.74678921,99.023,98.871,2.41352436]
[1646089496074,2.74678921,99.067,98.871,2.41352436]
[1646089496276,97.7,99.062,98.873,97.7]
[1646089496676,4.61093893,99.061,98.872,24.5574]
[1646089496876,97.7,99.057,98.872,24.5574]
[1646089497078,1.49050512,99.056,98.872,24.5574]
[1646089497276,17.90024571,99.056,98.872,24.5574]
[1646089497476,16.40974059,99.056,98.872,24.5574]
[1646089497677,16.38878883,99.055,98.873,97.7]
[1646089497978,1.69234646,99.054,98.878,59.33]
[1646089498278,2.74678921,99.054,98.889,157.03]
[1646089498478,2.74678921,99.053,98.89,2.61713516]
[1646089498877,2.74678921,99.053,98.889,97.7]
[1646089499079,2.74678921,99.053,98.891,97.7]
[1646089499278,2.63478921,99.053,98.891,97.7]
[1646089499479,2.74678921,99.052,98.891,97.7]
[1646089499682,2.63478921,99.052,98.891,97.7]
[1646089500979,2.63478921,99.052,98.891,112.5572]
[1646089501381,2.63478921,99.052,98.892,2.34860992]
[1646089501778,2.63478921,99.052,98.896,59.33]
[1646089501979,2.63478921,99.052,98.902,157.03]
[1646089502178,2.63478921,99.052,98.902,59.33]
[1646089502982,2.63478921,99.052,98.891,59.33]
[1646089503382,2.63478921,99.052,98.895,59.33]
[1646089503982,2.63478921,99.052,98.91,97.7]
[1646089504183,2.63478921,99.052,98.923,59.33]
[1646089505382,2.68822815,99.071,98.923,74.1469]
[1646089505582,5.67047038,99.071,98.929,59.33]
[1646089505783,2.63478921,99.07,98.929,59.33]
[1646089506581,2.63478921,99.07,98.924,59.33]
[1646089507182,2.63478921,99.07,98.923,14.8169]
[1646089507382,5.0,99.068,98.923,14.8169]
[1646089507584,2.68822815,99.056,98.923,14.8169]
[1646089507786,6.66726095,99.068,98.923,14.8169]
[1646089507787,2.68822815,99.052,98.923,14.8169]
[1646089508384,5.67048893,99.054,98.923,14.8169]
[1646089508385,5.43501736,99.051,98.923,14.8169]
[1646089508587,8.35871708,99.05,98.923,14.8169]
[1646089508784,9.85381594,99.05,98.923,14.8169]
[1646089508983,2.74678921,99.049,98.923,14.8169]
[1646089509784,2.68822815,99.046,98.923,14.8169]
[1646089509986,2.68822815,99.046,98.899,78.5482]
[1646089510192,5.0,99.038,98.899,78.5482]
[1646089510386,5.67229109,99.037,98.899,78.5482]
[1646089510586,8.4190803,99.037,98.899,78.5482]
[1646089510789,2.74678921,99.036,98.899,78.5482]
[1646089511488,5.0,99.018,98.875,15.1882]
[1646089511887,2.63478921,99.017,98.875,15.1882]
[1646089513389,2.63478921,99.017,98.885,15.0267]
[1646089514289,2.63478921,99.017,98.865,2.74678921]
[1646089514290,2.63478921,99.017,98.891,97.7]
[1646089514688,2.63478921,99.017,98.887,59.33]
[1646089515088,2.63478921,99.017,98.89,62.3753]
[1646089515492,2.63478921,99.017,98.894,59.33]
[1646089515691,2.68822815,99.042,98.894,59.33]
[1646089515990,2.43785368,99.041,98.895,2.74678921]
[1646089516189,8.10971752,99.041,98.897,97.7]
[1646089516390,8.10971752,99.041,98.895,5.53513189]
[1646089516391,2.43785368,99.041,98.9,59.33]
[1646089516591,1.94538238,99.099,98.902,59.33]
[1646089516792,1.94538238,99.099,98.91,0.56]
[1646089516990,6.91899354,99.107,98.93,0.56]
[1646089517192,2.68822815,99.149,98.94,0.56]
[1646089517592,2.49846049,99.148,98.944,97.7]
[1646089517795,2.49846049,99.148,98.954,97.7]
[1646089518091,1.50515034,99.155,98.971,59.33]
[1646089518092,2.49846049,99.155,98.971,59.33]
[1646089518292,2.68822815,99.183,98.98,97.7]
[1646089518493,2.68822815,99.183,98.976,2.75791045]
[1646089518494,2.68822815,99.186,98.998,97.7]
[1646089518694,2.68822815,99.181,99.022,97.7]
[1646089518993,1.63587478,99.182,99.027,59.33]
[1646089519194,1.63587478,99.18,99.027,59.33]
[1646089519594,1.63587478,99.185,99.027,59.33]
[1646089519795,5.0,99.178,99.024,59.33]
[1646089520194,5.0,99.178,99.023,46.2127]
[1646089520397,1.63587478,99.177,99.023,46.2127]
[1646089520596,3.58021087,99.177,99.023,46.2127]
[1646089520802,5.0,99.178,99.023,46.2127]
[1646089520997,2.63478921,99.176,99.023,46.2127]
[1646089521495,2.63478921,99.176,99.024,59.33]
[1646089521694,4.65984188,99.176,99.024,59.33]
[1646089521996,2.02505267,99.176,99.024,59.33]
[1646089522394,2.63478921,99.175,99.024,59.33]
[1646089523416,2.63478921,99.175,99.023,46.2127]
[1646089523917,4.11208295,99.175,99.023,46.2127]
[1646089524319,1.47729374,99.175,99.023,46.2127]
[1646089524519,2.63478921,99.174,99.023,46.2127]
[1646089525720,2.63478921,99.174,99.023,143.9127]
[1646089526323,2.63478921,99.174,99.023,46.2127]
[1646089526923,5.0,99.158,99.023,46.2127]
[1646089527121,157.03,99.157,98.999,23.2967]
[1646089527323,59.33,99.147,98.999,23.2967]
[1646089527523,59.33,99.136,98.937,4.035]
[1646089527722,157.03,99.127,98.937,4.035]
[1646089527923,157.03,99.097,98.937,4.035]
[1646089528224,5.0,99.058,98.937,4.035]
[1646089528422,3.96993,99.125,98.917,120.1535]
[1646089528423,5.0,99.088,98.924,157.03]
[1646089528821,5.0,99.098,98.924,157.03]
[1646089529022,2.74678921,99.087,98.924,157.03]
[1646089529226,2.74678921,99.087,98.925,2.71605872]
[1646089529424,2.74678921,99.087,98.926,157.03]
[1646089529623,1.55879248,99.096,98.927,2.21609612]
[1646089529824,2.74678921,99.105,98.927,2.21609612]
[1646089530028,1.80572236,99.118,98.928,157.03]
[1646089530224,9.35433812,99.156,98.929,2.5571893]
[1646089530527,1.99542672,99.155,98.93,157.03]
[1646089530726,1.99542672,99.155,98.933,2.34937331]
[1646089530924,13.43775839,99.154,98.933,2.34937331]
[1646089531123,5.0,99.128,98.933,100.04937331]
[1646089531324,5.0,99.128,98.937,2.4124325]
[1646089531526,9.37187561,99.127,98.937,2.4124325]
[1646089531723,13.64646469,99.127,98.937,2.4124325]
[1646089531925,1.50154584,99.126,98.937,2.4124325]
[1646089532327,2.63478921,99.126,98.937,2.4124325]
[1646089532526,13.43775839,99.125,98.939,157.03]
[1646089532725,1.5919063,99.124,98.94,2.87265532]
[1646089533328,2.63478921,99.123,98.941,2.74678921]
[1646089534127,2.63478921,99.123,98.94,2.87265532]
[1646089534527,2.63478921,99.123,98.941,2.74678921]
[1646089536428,2.63478921,99.123,98.941,162.58769857]
[1646089536629,2.63478921,99.123,98.942,2.90416037]
[1646089537029,11.98912733,99.123,98.943,2.74678921]
[1646089537429,1.56688248,99.122,98.943,2.74678921]
[1646089537629,1.88541815,99.122,98.943,2.74678921]
[1646089537829,2.63478921,99.122,98.943,2.74678921]
[1646089538031,11.29780954,99.122,98.943,2.74678921]
[1646089538229,1.56875406,99.121,98.943,2.74678921]
[1646089538631,9.35433812,99.12,98.943,2.74678921]
[1646089538929,11.98912733,99.12,98.943,159.77678921]
[1646089539131,2.01281814,99.119,98.944,2.83857227]
[1646089539330,2.63478921,99.119,98.958,59.33]
[1646089539531,4.51281646,99.119,98.96,59.33]
[1646089539730,11.24990286,99.119,98.961,2.14122202]
[1646089539932,4.32790591,99.118,98.964,59.33]
[1646089540132,4.32790591,99.118,98.973,97.7]
[1646089540331,1.55811887,99.118,98.984,157.03]
[1646089540531,2.63478921,99.117,98.984,157.03]
[1646089540935,2.63478921,99.117,98.959,47.6893]
[1646089540936,2.63478921,99.117,98.986,157.03]
[1646089541132,1.82692558,99.144,98.986,157.03]
[1646089541432,2.63478921,99.117,98.988,157.03]
[1646089542633,2.63478921,99.117,98.989,2.74678921]
[1646089542832,2.63478921,99.117,98.988,157.03]
[1646089543032,1.47540553,99.132,98.989,2.89946601]
[1646089543436,9.37187561,99.131,98.988,157.03]
[1646089543635,11.36053196,99.131,98.988,157.03]
[1646089543835,2.63478921,99.13,98.988,157.03]
[1646089544035,4.15970131,99.13,98.988,157.03]
[1646089544236,13.43775839,99.129,98.988,157.03]
[1646089544436,1.54356001,99.128,98.989,2.57600034]
[1646089544635,4.29034922,99.128,98.988,159.27678921]
[1646089544837,4.29034922,99.128,98.989,2.52100277]
[1646089545136,1.54356001,99.128,98.989,2.52100277]
[1646089545337,1.54356001,99.128,98.99,2.74678921]
[1646089547839,1.54356001,99.128,98.991,156.53]
[1646089548440,1.54356001,99.128,98.991,159.27678921]
[1646089548737,2.74678921,99.131,98.991,159.27678921]
[1646089550839,2.74678921,99.131,98.993,156.53]
[1646089554238,2.74678921,99.131,98.992,23.6707]
[1646089554538,1.78955887,99.129,98.992,23.6707]
[1646089554740,4.47778702,99.129,98.992,23.6707]
[1646089555037,10.74379605,99.128,98.992,23.6707]
[1646089555237,1.88664129,99.127,98.992,23.6707]
[1646089555439,16.69632012,99.127,98.992,23.6707]
[1646089555638,1.7381644,99.126,98.992,23.6707]
[1646089555840,2.68822815,99.125,98.992,23.6707]